[Event "*** Titled Tuesday Blitz"]
[Site "Chess.com"]
[Date "2020.05.19"]
[Round "10"]
[White "LionTheLeon_06"]
[Black "ZEN-22"]
[Result "0-1"]
[WhiteElo "2677"]
[BlackElo "2546"]
[TimeControl "180+1"]
[EndTime "13:56:35 PDT"]
[Termination "ZEN-22 won on time"]

1. d4 {[%clk 0:03:00.9]} 1... c5 {[%clk 0:02:57]} 2. d5 {[%clk 0:03:00.5]} 2...
e6 {[%clk 0:02:56.9]} 3. e4 {[%clk 0:03:00.1]} 3... exd5 {[%clk 0:02:55.6]} 4.
exd5 {[%clk 0:03:00.4]} 4... d6 {[%clk 0:02:56.5]} 5. Nc3 {[%clk 0:03:00.5]}
5... Be7 {[%clk 0:02:57]} 6. a4 {[%clk 0:03:00.5]} 6... Nf6 {[%clk 0:02:57.9]}
7. Nf3 {[%clk 0:03:00.7]} 7... O-O {[%clk 0:02:58.5]} 8. Be2 {[%clk 0:03:00]}
8... h6 {[%clk 0:02:59.4]} 9. O-O {[%clk 0:03:00.1]} 9... Re8 {[%clk 0:02:59.7]}
10. h3 {[%clk 0:03:00.2]} 10... Na6 {[%clk 0:02:59.6]} 11. Bf4 {[%clk
0:02:59.9]} 11... Nc7 {[%clk 0:02:59.4]} 12. Re1 {[%clk 0:02:58.8]} 12... Bf8
{[%clk 0:02:58.7]} 13. Qd2 {[%clk 0:02:56.7]} 13... Ne4 {[%clk 0:02:54.8]} 14.
Nxe4 {[%clk 0:02:53]} 14... Rxe4 {[%clk 0:02:55.7]} 15. Bg3 {[%clk 0:02:48.7]}
15... Bf5 {[%clk 0:02:52.3]} 16. Bd3 {[%clk 0:02:41.7]} 16... Rxe1+ {[%clk
0:02:51.2]} 17. Rxe1 {[%clk 0:02:42.6]} 17... Bxd3 {[%clk 0:02:50.5]} 18. Qxd3
{[%clk 0:02:43.5]} 18... a6 {[%clk 0:02:50.1]} 19. Nd2 {[%clk 0:02:39.5]} 19...
b5 {[%clk 0:02:44.6]} 20. a5 {[%clk 0:02:38]} 20... c4 {[%clk 0:02:37.5]} 21.
Qd4 {[%clk 0:02:35.7]} 21... Qd7 {[%clk 0:02:26.2]} 22. Ne4 {[%clk 0:01:50.5]}
22... Qf5 {[%clk 0:02:06.4]} 23. Rd1 {[%clk 0:01:41.1]} 23... Ne8 {[%clk
0:01:54.2]} 24. Re1 {[%clk 0:01:24.5]} 24... Rc8 {[%clk 0:01:27.3]} 25. f3
{[%clk 0:01:08.4]} 25... Nf6 {[%clk 0:01:26.8]} 26. Nxd6 {[%clk 0:00:37.5]}
26... Bxd6 {[%clk 0:01:24.3]} 27. Bxd6 {[%clk 0:00:38.4]} 27... Nxd5 {[%clk
0:01:15.9]} 28. Re5 {[%clk 0:00:32.5]} 28... Nf4 {[%clk 0:01:05.6]} 29. Qe4
{[%clk 0:00:06.8]} 29... Qxe4 {[%clk 0:01:02.8]} 30. Rxe4 {[%clk 0:00:07.7]}
30... Ne6 {[%clk 0:01:03]} 31. Bb4 {[%clk 0:00:06.4]} 31... Rd8 {[%clk
0:01:01.4]} 32. Re1 {[%clk 0:00:06.6]} 32... Nd4 {[%clk 0:00:58.9]} 33. c3
{[%clk 0:00:03.9]} 33... Nc2 {[%clk 0:00:58.3]} 34. Re2 {[%clk 0:00:03.1]} 34...
Nxb4 {[%clk 0:00:57.7]} 35. cxb4 {[%clk 0:00:03.5]} 35... Rd3 {[%clk 0:00:58.3]}
36. Re8+ {[%clk 0:00:03]} 36... Kh7 {[%clk 0:00:57.6]} 37. Ra8 {[%clk
0:00:02.7]} 37... Rb3 {[%clk 0:00:58.5]} 38. Rxa6 {[%clk 0:00:03.2]} 38... Rxb4
{[%clk 0:00:58.9]} 39. Rc6 {[%clk 0:00:02]} 39... Rxb2 {[%clk 0:00:59]} 40. a6
{[%clk 0:00:02.5]} 40... Ra2 {[%clk 0:00:59]} 41. Rb6 {[%clk 0:00:02]} 41... c3
{[%clk 0:00:57.4]} 42. Rxb5 {[%clk 0:00:01.8]} 42... Ra1+ {[%clk 0:00:57.3]} 43.
Kf2 {[%clk 0:00:01.5]} 43... c2 {[%clk 0:00:58.2]} 44. Rc5 {[%clk 0:00:01]}
44... c1=Q {[%clk 0:00:57.8]} 0-1

[Event "*** Titled Tuesday Blitz"]
[Site "Chess.com"]
[Date "2020.05.19"]
[Round "10"]
[White "MergenKakabaev"]
[Black "PowerThinking2650"]
[Result "0-1"]
[WhiteElo "2423"]
[BlackElo "2319"]
[TimeControl "180+1"]
[EndTime "13:56:35 PDT"]
[Termination "PowerThinking2650 won by resignation"]

1. e4 {[%clk 0:03:00.7]} 1... e5 {[%clk 0:02:55.6]} 2. Nf3 {[%clk 0:02:58.4]}
2... Nc6 {[%clk 0:02:55.7]} 3. Bb5 {[%clk 0:02:58.7]} 3... a6 {[%clk 0:02:55.6]}
4. Ba4 {[%clk 0:02:58.3]} 4... Nf6 {[%clk 0:02:54.5]} 5. O-O {[%clk 0:02:57.9]}
5... Be7 {[%clk 0:02:53.2]} 6. Re1 {[%clk 0:02:57.9]} 6... b5 {[%clk 0:02:53.3]}
7. Bb3 {[%clk 0:02:58.1]} 7... d6 {[%clk 0:02:53.5]} 8. c3 {[%clk 0:02:57.9]}
8... O-O {[%clk 0:02:53.4]} 9. h3 {[%clk 0:02:58.3]} 9... Bb7 {[%clk 0:02:53.1]}
10. d4 {[%clk 0:02:57.8]} 10... Re8 {[%clk 0:02:53.1]} 11. Nbd2 {[%clk
0:02:56.9]} 11... Bf8 {[%clk 0:02:52.7]} 12. Bc2 {[%clk 0:02:56.9]} 12... h6
{[%clk 0:02:47.7]} 13. a3 {[%clk 0:02:55]} 13... Nb8 {[%clk 0:02:46.4]} 14. Nf1
{[%clk 0:02:53.7]} 14... exd4 {[%clk 0:02:44.6]} 15. Qxd4 {[%clk 0:02:51.1]}
15... c5 {[%clk 0:02:43.6]} 16. Qd1 {[%clk 0:02:50.4]} 16... Nxe4 {[%clk
0:02:36.3]} 17. Bf4 {[%clk 0:02:43.9]} 17... Qf6 {[%clk 0:02:27]} 18. Bh2 {[%clk
0:02:38.9]} 18... Nd7 {[%clk 0:02:21.7]} 19. Ne3 {[%clk 0:02:34.1]} 19... Ng5
{[%clk 0:02:16.5]} 20. Nxg5 {[%clk 0:02:17.8]} 20... Qxg5 {[%clk 0:02:16.3]} 21.
Bg3 {[%clk 0:02:17.4]} 21... Nf6 {[%clk 0:02:07.6]} 22. h4 {[%clk 0:02:11.2]}
22... Qh5 {[%clk 0:02:01.7]} 23. Bxd6 {[%clk 0:02:08.9]} 23... Bxd6 {[%clk
0:01:52.9]} 24. Qxd6 {[%clk 0:02:06.5]} 24... Qxh4 {[%clk 0:01:44.1]} 25. Qxc5
{[%clk 0:02:05.2]} 25... Ng4 {[%clk 0:01:14.1]} 26. Qf5 {[%clk 0:01:54.2]} 26...
Qh2+ {[%clk 0:01:06.5]} 27. Kf1 {[%clk 0:01:52.4]} 27... Qh1+ {[%clk 0:00:50.1]}
28. Ke2 {[%clk 0:01:50.5]} 28... Rxe3+ {[%clk 0:00:50]} 29. fxe3 {[%clk
0:01:50]} 29... Qxg2+ {[%clk 0:00:48.5]} 30. Kd1 {[%clk 0:01:50.3]} 30... Rd8+
{[%clk 0:00:47.7]} 31. Kc1 {[%clk 0:01:50.6]} 31... Qd2+ {[%clk 0:00:46.6]} 32.
Kb1 {[%clk 0:01:51.1]} 32... Qxe1+ {[%clk 0:00:32.5]} 33. Ka2 {[%clk 0:01:49.3]}
33... Bd5+ {[%clk 0:00:32.1]} 34. b3 {[%clk 0:01:48.3]} 34... Qxc3 {[%clk
0:00:26.4]} 35. Rd1 {[%clk 0:01:46.9]} 35... Bxb3+ {[%clk 0:00:20.3]} 36. Bxb3
{[%clk 0:01:44.7]} 36... Rd2+ {[%clk 0:00:07.5]} 37. Rxd2 {[%clk 0:01:42.3]}
37... Qxd2+ {[%clk 0:00:08.4]} 38. Kb1 {[%clk 0:01:40.1]} 38... Qe1+ {[%clk
0:00:08.7]} 39. Kb2 {[%clk 0:01:39.5]} 39... Qf2+ {[%clk 0:00:08.9]} 40. Qxf2
{[%clk 0:01:37.6]} 40... Nxf2 {[%clk 0:00:09.8]} 41. Kc3 {[%clk 0:01:38.5]}
41... h5 {[%clk 0:00:10]} 42. Kd4 {[%clk 0:01:39.1]} 42... h4 {[%clk 0:00:09.8]}
43. Kc5 {[%clk 0:01:39.5]} 43... h3 {[%clk 0:00:09.6]} 44. Bd5 {[%clk
0:01:39.8]} 44... g6 {[%clk 0:00:08.5]} 45. Kb6 {[%clk 0:01:40]} 45... Kg7
{[%clk 0:00:07.9]} 46. Kxa6 {[%clk 0:01:40.2]} 46... f5 {[%clk 0:00:08.5]} 47.
Bf3 {[%clk 0:01:39.9]} 47... g5 {[%clk 0:00:08.4]} 48. Kxb5 {[%clk 0:01:39.2]}
48... g4 {[%clk 0:00:08.9]} 49. Bd5 {[%clk 0:01:39.2]} 49... Ne4 {[%clk
0:00:09.1]} 50. a4 {[%clk 0:01:39.5]} 50... Nc3+ {[%clk 0:00:09.1]} 51. Kc4
{[%clk 0:01:39.1]} 51... Nxd5 {[%clk 0:00:10]} 52. Kxd5 {[%clk 0:01:39.3]} 52...
h2 {[%clk 0:00:10]} 53. a5 {[%clk 0:01:40.1]} 53... h1=Q+ {[%clk 0:00:10.9]} 54.
Ke5 {[%clk 0:01:39.8]} 54... Qa8 {[%clk 0:00:09.8]} 0-1

[Event "*** Titled Tuesday Blitz"]
[Site "Chess.com"]
[Date "2020.05.19"]
[Round "10"]
[White "TenisMaster"]
[Black "Lagmantr"]
[Result "1-0"]
[WhiteElo "2804"]
[BlackElo "2698"]
[TimeControl "180+1"]
[EndTime "13:56:37 PDT"]
[Termination "TenisMaster won by resignation"]

1. e4 {[%clk 0:02:59.9]} 1... c6 {[%clk 0:02:57]} 2. Nf3 {[%clk 0:02:58]} 2...
d5 {[%clk 0:02:57.9]} 3. d3 {[%clk 0:02:58]} 3... dxe4 {[%clk 0:02:57.8]} 4.
dxe4 {[%clk 0:02:58.3]} 4... Qxd1+ {[%clk 0:02:58.7]} 5. Kxd1 {[%clk 0:02:56.7]}
5... g6 {[%clk 0:02:59.6]} 6. Nfd2 {[%clk 0:02:50.1]} 6... Bg7 {[%clk
0:02:59.5]} 7. a4 {[%clk 0:02:47.3]} 7... f5 {[%clk 0:02:56.2]} 8. f3 {[%clk
0:02:45.6]} 8... Nf6 {[%clk 0:02:56]} 9. Bd3 {[%clk 0:02:44.1]} 9... Nbd7 {[%clk
0:02:54.2]} 10. exf5 {[%clk 0:02:41.3]} 10... Nc5 {[%clk 0:02:54]} 11. fxg6
{[%clk 0:02:34.3]} 11... Nxd3 {[%clk 0:02:53.7]} 12. cxd3 {[%clk 0:02:33.9]}
12... hxg6 {[%clk 0:02:54]} 13. Ne4 {[%clk 0:02:31.5]} 13... Bf5 {[%clk
0:02:44.7]} 14. Kc2 {[%clk 0:02:26.3]} 14... O-O-O {[%clk 0:02:41.4]} 15. Na3
{[%clk 0:02:21.1]} 15... Nd5 {[%clk 0:01:59.1]} 16. Bd2 {[%clk 0:02:19.6]} 16...
Nb6 {[%clk 0:01:58.5]} 17. a5 {[%clk 0:02:04.6]} 17... Na4 {[%clk 0:01:51.4]}
18. Bc3 {[%clk 0:01:44.1]} 18... Nxc3 {[%clk 0:01:12.3]} 19. bxc3 {[%clk
0:01:45]} 19... Rd5 {[%clk 0:00:58.2]} 20. Nc4 {[%clk 0:01:43]} 20... Kc7 {[%clk
0:00:47.6]} 21. h3 {[%clk 0:01:36.9]} 21... Rf8 {[%clk 0:00:46.3]} 22. Rhb1
{[%clk 0:01:27.6]} 22... Bxe4 {[%clk 0:00:37.6]} 23. dxe4 {[%clk 0:01:25.6]}
23... Rc5 {[%clk 0:00:37.6]} 24. Rb4 {[%clk 0:01:20.5]} 24... Rg5 {[%clk
0:00:27.6]} 25. Rg1 {[%clk 0:01:08.5]} 25... Rxf3 {[%clk 0:00:23.9]} 26. Rxb7+
{[%clk 0:00:58.8]} 26... Kxb7 {[%clk 0:00:20.6]} 27. Rb1+ {[%clk 0:00:58.4]}
27... Kc7 {[%clk 0:00:18.1]} 28. gxf3 {[%clk 0:00:59]} 28... Rg3 {[%clk
0:00:17.5]} 29. a6 {[%clk 0:00:57.8]} 29... Rxf3 {[%clk 0:00:16.5]} 30. Rb7+
{[%clk 0:00:56.8]} 30... Kd8 {[%clk 0:00:16.7]} 31. e5 {[%clk 0:00:56.2]} 31...
Rf4 {[%clk 0:00:04.7]} 32. Kb3 {[%clk 0:00:54]} 32... Kc8 {[%clk 0:00:01.9]} 1-0

[Event "*** Titled Tuesday Blitz"]
[Site "Chess.com"]
[Date "2020.05.19"]
[Round "10"]
[White "Kezin_Roman"]
[Black "Joshukid"]
[Result "1-0"]
[WhiteElo "2746"]
[BlackElo "2563"]
[TimeControl "180+1"]
[EndTime "13:56:39 PDT"]
[Termination "Kezin_Roman won by resignation"]

1. h4 {[%clk 0:03:00.7]} 1... h6 {[%clk 0:02:59.1]} 2. h5 {[%clk 0:03:01.6]}
2... Nf6 {[%clk 0:02:58.9]} 3. a4 {[%clk 0:03:02]} 3... d5 {[%clk 0:02:57.4]} 4.
a5 {[%clk 0:03:02.9]} 4... Bg4 {[%clk 0:02:57.9]} 5. Ra4 {[%clk 0:03:03]} 5...
Bxh5 {[%clk 0:02:57.5]} 6. b3 {[%clk 0:03:02.9]} 6... e6 {[%clk 0:02:55]} 7.
Rah4 {[%clk 0:03:01.8]} 7... Bg6 {[%clk 0:02:54.8]} 8. Nf3 {[%clk 0:03:01.6]}
8... Nbd7 {[%clk 0:02:54.2]} 9. e3 {[%clk 0:03:00.9]} 9... Be7 {[%clk
0:02:44.6]} 10. a6 {[%clk 0:03:00.8]} 10... b6 {[%clk 0:02:37.1]} 11. Bb2 {[%clk
0:02:59.9]} 11... c6 {[%clk 0:02:34.1]} 12. g4 {[%clk 0:02:56.1]} 12... Ne4
{[%clk 0:02:29.3]} 13. R4h2 {[%clk 0:02:52.1]} 13... Bf6 {[%clk 0:02:28.7]} 14.
Qc1 {[%clk 0:02:50.5]} 14... Qe7 {[%clk 0:02:23.3]} 15. d3 {[%clk 0:02:45.2]}
15... Nec5 {[%clk 0:02:10.7]} 16. Nbd2 {[%clk 0:02:36.5]} 16... Rg8 {[%clk
0:02:01.7]} 17. Ba3 {[%clk 0:02:23.6]} 17... e5 {[%clk 0:01:56]} 18. Nh4 {[%clk
0:02:14.9]} 18... Bxh4 {[%clk 0:01:39.7]} 19. Rxh4 {[%clk 0:02:15.8]} 19...
O-O-O {[%clk 0:01:40.3]} 20. Bg2 {[%clk 0:02:12.7]} 20... Qe6 {[%clk 0:01:36.8]}
21. Bb2 {[%clk 0:01:51.9]} 21... Nxa6 {[%clk 0:01:31.4]} 22. Qa1 {[%clk
0:01:46.7]} 22... Kb7 {[%clk 0:01:24.9]} 23. g5 {[%clk 0:01:46.2]} 23... hxg5
{[%clk 0:01:24.1]} 24. Ra4 {[%clk 0:01:46.8]} 24... Ndc5 {[%clk 0:01:19.9]} 25.
Ra3 {[%clk 0:01:43.9]} 25... Ra8 {[%clk 0:01:20]} 26. O-O {[%clk 0:01:27.2]}
26... Nb4 {[%clk 0:01:11.7]} 27. Rc1 {[%clk 0:01:27.6]} 27... a5 {[%clk
0:01:07.8]} 28. Bxe5 {[%clk 0:01:27.4]} 28... f6 {[%clk 0:00:59.6]} 29. Bg3
{[%clk 0:01:25.9]} 29... Rge8 {[%clk 0:00:52.2]} 30. c4 {[%clk 0:01:15]} 30...
dxc4 {[%clk 0:00:43.2]} 31. Nxc4 {[%clk 0:01:13.6]} 31... Nbxd3 {[%clk 0:00:30]}
32. Nd6+ {[%clk 0:01:12.3]} 32... Ka6 {[%clk 0:00:23.6]} 33. Bxc6 {[%clk
0:00:51.2]} 33... Nxc1 {[%clk 0:00:08.2]} 34. Bb5+ {[%clk 0:00:51.4]} 34... Ka7
{[%clk 0:00:06.2]} 35. Rxa5+ {[%clk 0:00:52.3]} 1-0

[Event "*** Titled Tuesday Blitz"]
[Site "Chess.com"]
[Date "2020.05.19"]
[Round "10"]
[White "DanielDardha2005"]
[Black "realmadridtv"]
[Result "1-0"]
[WhiteElo "2638"]
[BlackElo "2470"]
[TimeControl "180+1"]
[EndTime "13:56:39 PDT"]
[Termination "DanielDardha2005 won by resignation"]

1. Nf3 {[%clk 0:03:00.9]} 1... Nf6 {[%clk 0:02:58.8]} 2. c4 {[%clk 0:03:01]}
2... g6 {[%clk 0:02:57.2]} 3. Nc3 {[%clk 0:03:01.3]} 3... Bg7 {[%clk 0:02:52.3]}
4. e4 {[%clk 0:03:01.5]} 4... c5 {[%clk 0:02:53]} 5. d4 {[%clk 0:03:01.7]} 5...
cxd4 {[%clk 0:02:52.3]} 6. Nxd4 {[%clk 0:03:02.6]} 6... Nc6 {[%clk 0:02:52.8]}
7. Nxc6 {[%clk 0:03:01.7]} 7... bxc6 {[%clk 0:02:50.6]} 8. e5 {[%clk 0:03:01.5]}
8... Ng8 {[%clk 0:02:50.9]} 9. Bf4 {[%clk 0:03:00]} 9... Rb8 {[%clk 0:02:47.5]}
10. Qd2 {[%clk 0:02:54.1]} 10... e6 {[%clk 0:02:46.8]} 11. Ne4 {[%clk
0:02:50.9]} 11... Ne7 {[%clk 0:02:44.6]} 12. Nf6+ {[%clk 0:02:42.1]} 12... Kf8
{[%clk 0:02:38]} 13. Bh6 {[%clk 0:02:42.2]} 13... d5 {[%clk 0:02:25.2]} 14. exd6
{[%clk 0:02:33.9]} 14... Nf5 {[%clk 0:02:23.1]} 15. Bxg7+ {[%clk 0:02:34.1]}
15... Kxg7 {[%clk 0:02:20.8]} 16. Ne4 {[%clk 0:02:33.9]} 16... c5 {[%clk
0:02:15.2]} 17. g4 {[%clk 0:02:24.8]} 17... Nd4 {[%clk 0:02:12.3]} 18. Bg2
{[%clk 0:02:20.2]} 18... Bb7 {[%clk 0:02:09]} 19. Nxc5 {[%clk 0:02:07.9]} 19...
Bxg2 {[%clk 0:02:07.9]} 20. Qxd4+ {[%clk 0:02:06.2]} 20... e5 {[%clk 0:01:43.4]}
21. Qxe5+ {[%clk 0:02:05.6]} 21... Kh6 {[%clk 0:01:43.9]} 22. O-O-O {[%clk
0:01:20.3]} 22... Bxh1 {[%clk 0:01:40.4]} 23. Rxh1 {[%clk 0:01:20.3]} 23... Qg5+
{[%clk 0:01:40.4]} 24. Qxg5+ {[%clk 0:01:19.6]} 24... Kxg5 {[%clk 0:01:41.3]}
25. h3 {[%clk 0:01:15.7]} 25... Kf4 {[%clk 0:01:36.8]} 26. Re1 {[%clk
0:01:09.1]} 26... h5 {[%clk 0:01:29.7]} 27. Nd3+ {[%clk 0:01:07.5]} 27... Kf3
{[%clk 0:01:28.1]} 28. Re3+ {[%clk 0:01:06.4]} 28... Kg2 {[%clk 0:01:27.9]} 29.
g5 {[%clk 0:01:04.2]} 29... Rhe8 {[%clk 0:01:18.2]} 30. Rxe8 {[%clk 0:01:00.5]}
30... Rxe8 {[%clk 0:01:19.1]} 31. c5 {[%clk 0:01:01.1]} 31... Rd8 {[%clk
0:01:13.1]} 32. Ne5 {[%clk 0:00:59.9]} 32... Re8 {[%clk 0:00:58.7]} 33. d7
{[%clk 0:00:58.2]} 33... Rxe5 {[%clk 0:00:58.7]} 34. d8=Q {[%clk 0:00:57.8]}
34... Rxc5+ {[%clk 0:00:58.8]} 35. Kd2 {[%clk 0:00:57.8]} 35... Rf5 {[%clk
0:00:56.9]} 36. b4 {[%clk 0:00:54.2]} 36... Kxh3 {[%clk 0:00:53.9]} 37. Qd3+
{[%clk 0:00:50.6]} 37... Kg2 {[%clk 0:00:52.2]} 38. Qg3+ {[%clk 0:00:50.3]}
38... Kf1 {[%clk 0:00:48.5]} 39. Ke3 {[%clk 0:00:48.7]} 39... a5 {[%clk
0:00:43.8]} 40. Qh2 {[%clk 0:00:46.9]} 40... Rxg5 {[%clk 0:00:37.8]} 41. Qh1+
{[%clk 0:00:34.6]} 41... Rg1 {[%clk 0:00:37.8]} 42. Qh3+ {[%clk 0:00:35.2]}
42... Ke1 {[%clk 0:00:37.9]} 43. bxa5 {[%clk 0:00:34.8]} 43... Kd1 {[%clk
0:00:28.4]} 44. a6 {[%clk 0:00:33.8]} 44... Re1+ {[%clk 0:00:28.6]} 45. Kd3
{[%clk 0:00:33.3]} 1-0

[Event "*** Titled Tuesday Blitz"]
[Site "Chess.com"]
[Date "2020.05.19"]
[Round "10"]
[White "TigrVShlyape"]
[Black "GHANDEEVAM2003"]
[Result "1-0"]
[WhiteElo "2844"]
[BlackElo "2908"]
[TimeControl "180+1"]
[EndTime "13:56:41 PDT"]
[Termination "TigrVShlyape won by resignation"]

1. d4 {[%clk 0:03:00.9]} 1... d5 {[%clk 0:02:58.1]} 2. Nf3 {[%clk 0:03:00.9]}
2... Nf6 {[%clk 0:02:58.2]} 3. Bf4 {[%clk 0:03:00.9]} 3... e6 {[%clk 0:02:57.5]}
4. e3 {[%clk 0:02:59.6]} 4... c5 {[%clk 0:02:57.7]} 5. c3 {[%clk 0:02:58.1]}
5... Nc6 {[%clk 0:02:57.9]} 6. Nbd2 {[%clk 0:02:57.6]} 6... cxd4 {[%clk
0:02:58.4]} 7. exd4 {[%clk 0:02:57.1]} 7... Nh5 {[%clk 0:02:58.9]} 8. Bg3 {[%clk
0:02:55.1]} 8... g6 {[%clk 0:02:58.1]} 9. Bd3 {[%clk 0:02:43.7]} 9... Bg7 {[%clk
0:02:57.5]} 10. O-O {[%clk 0:02:43.2]} 10... O-O {[%clk 0:02:57.2]} 11. Re1
{[%clk 0:02:42.4]} 11... b6 {[%clk 0:02:45.9]} 12. Qe2 {[%clk 0:02:39.9]} 12...
a5 {[%clk 0:02:39.3]} 13. a4 {[%clk 0:02:35.2]} 13... Bb7 {[%clk 0:02:35.1]} 14.
Rad1 {[%clk 0:02:32.4]} 14... Qd7 {[%clk 0:02:26.2]} 15. Bb5 {[%clk 0:02:29.9]}
15... Qe7 {[%clk 0:02:19.2]} 16. Ne5 {[%clk 0:02:14.7]} 16... Na7 {[%clk
0:02:07.9]} 17. Bd3 {[%clk 0:02:06]} 17... f6 {[%clk 0:01:58.2]} 18. Nxg6 {[%clk
0:01:50.7]} 18... hxg6 {[%clk 0:01:54.9]} 19. Bxg6 {[%clk 0:01:50.9]} 19... Nxg3
{[%clk 0:01:54.6]} 20. hxg3 {[%clk 0:01:50.4]} 20... e5 {[%clk 0:00:59.4]} 21.
Qh5 {[%clk 0:01:49.2]} 21... Rfd8 {[%clk 0:00:54.8]} 22. Nf3 {[%clk 0:01:38.8]}
22... e4 {[%clk 0:00:47.4]} 23. Nh4 {[%clk 0:01:38.5]} 23... Qc7 {[%clk
0:00:43.3]} 24. Bh7+ {[%clk 0:01:16.7]} 24... Kf8 {[%clk 0:00:43.4]} 25. Ng6+
{[%clk 0:01:14.5]} 25... Kf7 {[%clk 0:00:41.7]} 26. Nf4+ {[%clk 0:01:14.4]}
26... Ke7 {[%clk 0:00:40.5]} 27. Qg4 {[%clk 0:01:12.1]} 27... Bh8 {[%clk
0:00:28.1]} 28. f3 {[%clk 0:00:59]} 28... Bc8 {[%clk 0:00:12.5]} 29. Qh5 {[%clk
0:00:54.5]} 29... Kf8 {[%clk 0:00:11.8]} 30. fxe4 {[%clk 0:00:50.8]} 30... Qg7
{[%clk 0:00:12.3]} 31. Bg6 {[%clk 0:00:39.1]} 31... Rb8 {[%clk 0:00:06.9]} 32.
exd5 {[%clk 0:00:36.8]} 32... Rb7 {[%clk 0:00:07.4]} 33. d6 {[%clk 0:00:30.6]}
33... Nc6 {[%clk 0:00:05]} 34. Be4 {[%clk 0:00:26.9]} 34... Bd7 {[%clk
0:00:04.3]} 35. Ng6+ {[%clk 0:00:25.8]} 35... Kg8 {[%clk 0:00:04.1]} 36. Bd5+
{[%clk 0:00:26.3]} 1-0

[Event "*** Titled Tuesday Blitz"]
[Site "Chess.com"]
[Date "2020.05.19"]
[Round "10"]
[White "2L8IWUN"]
[Black "NikolaGry"]
[Result "1/2-1/2"]
[WhiteElo "2545"]
[BlackElo "2631"]
[TimeControl "180+1"]
[EndTime "13:56:43 PDT"]
[Termination "Game drawn by repetition"]

1. Nf3 {[%clk 0:03:00.9]} 1... c5 {[%clk 0:02:59]} 2. e4 {[%clk 0:03:00.8]} 2...
Nf6 {[%clk 0:02:57.9]} 3. Nc3 {[%clk 0:02:59.4]} 3... Nc6 {[%clk 0:02:57.1]} 4.
Bb5 {[%clk 0:02:58]} 4... e6 {[%clk 0:02:56.2]} 5. Bxc6 {[%clk 0:02:55.2]} 5...
bxc6 {[%clk 0:02:55.8]} 6. e5 {[%clk 0:02:55.7]} 6... Nd5 {[%clk 0:02:55.5]} 7.
Ne4 {[%clk 0:02:53.7]} 7... f6 {[%clk 0:02:34.7]} 8. exf6 {[%clk 0:02:52.2]}
8... Nxf6 {[%clk 0:02:34]} 9. Nxf6+ {[%clk 0:02:51.7]} 9... Qxf6 {[%clk
0:02:33.9]} 10. O-O {[%clk 0:02:51.8]} 10... d6 {[%clk 0:02:28.6]} 11. d4 {[%clk
0:02:47.2]} 11... cxd4 {[%clk 0:02:25.3]} 12. Bg5 {[%clk 0:02:38.8]} 12... Qf5
{[%clk 0:02:18.6]} 13. Qxd4 {[%clk 0:02:31.7]} 13... h6 {[%clk 0:02:03.9]} 14.
Be3 {[%clk 0:02:20]} 14... c5 {[%clk 0:02:02.6]} 15. Qc4 {[%clk 0:01:59.6]}
15... Qd5 {[%clk 0:01:48.6]} 16. Qg4 {[%clk 0:01:46.5]} 16... e5 {[%clk
0:01:42.4]} 17. Qg6+ {[%clk 0:01:38.7]} 17... Qf7 {[%clk 0:01:41.1]} 18. Qe4
{[%clk 0:01:21.5]} 18... Bb7 {[%clk 0:01:37.5]} 19. Qa4+ {[%clk 0:01:21.4]}
19... Qd7 {[%clk 0:01:32.4]} 20. Qxd7+ {[%clk 0:01:21.1]} 20... Kxd7 {[%clk
0:01:31.8]} 21. Rfd1 {[%clk 0:01:19.5]} 21... Kc7 {[%clk 0:01:19.7]} 22. Nd2
{[%clk 0:01:03.9]} 22... d5 {[%clk 0:01:03]} 23. f3 {[%clk 0:00:54.8]} 23... Rc8
{[%clk 0:00:42.5]} 24. c3 {[%clk 0:00:42.9]} 24... Be7 {[%clk 0:00:41.2]} 25.
Bf2 {[%clk 0:00:41.1]} 25... Rhe8 {[%clk 0:00:35.5]} 26. Re1 {[%clk 0:00:39.1]}
26... Bd6 {[%clk 0:00:34.4]} 27. Bg3 {[%clk 0:00:37.8]} 27... Bc6 {[%clk
0:00:33]} 28. Re2 {[%clk 0:00:34.5]} 28... Rb8 {[%clk 0:00:29.6]} 29. b3 {[%clk
0:00:30.2]} 29... Re7 {[%clk 0:00:29.2]} 30. Rae1 {[%clk 0:00:29.8]} 30... Rbe8
{[%clk 0:00:29.3]} 31. h4 {[%clk 0:00:25.4]} 31... a5 {[%clk 0:00:28.4]} 32. c4
{[%clk 0:00:22.7]} 32... d4 {[%clk 0:00:25.8]} 33. Ne4 {[%clk 0:00:23]} 33... a4
{[%clk 0:00:22]} 34. Nxd6 {[%clk 0:00:21.9]} 34... Kxd6 {[%clk 0:00:22]} 35. Kh2
{[%clk 0:00:19.4]} 35... axb3 {[%clk 0:00:20.7]} 36. axb3 {[%clk 0:00:18.8]}
36... g5 {[%clk 0:00:20.9]} 37. hxg5 {[%clk 0:00:17.3]} 37... hxg5 {[%clk
0:00:21.2]} 38. Kg1 {[%clk 0:00:17.8]} 38... Re6 {[%clk 0:00:20.5]} 39. Kf2
{[%clk 0:00:16.6]} 39... R6e7 {[%clk 0:00:20.3]} 40. Kg1 {[%clk 0:00:16.8]}
40... Re6 {[%clk 0:00:19.8]} 41. Kf2 {[%clk 0:00:17.2]} 41... R6e7 {[%clk
0:00:19.7]} 42. Kg1 {[%clk 0:00:17.6]} 1/2-1/2